{"text_format":"3","workbook":"xlsx","n_sheets":3,"sheets":["Kundeemnedata","Salgsprognose ","Månedlig vægtet prognose"],"not_rendered":{"charts":1,"defined_names":10},"read":"whole","date_system":"1900"}

{"sheet":"Kundeemnedata","index":0,"n_rows":9,"n_cols":10,"rows_kept":9,"merged":[[3,1,3,8]]}
[null,"Firmanavn"]
[null,"Måler til detaljerede kundeemner"]
[null,{"$f":"TODAY()","v":"2018-07-24"}]
[null,{"$f":"Firmanavn","v":"Firmanavn"},{"$nulls":7},"FORTROLIGT"]
[null,"Kundeemnets navn","Kontakt for kundeemne","Kilde for Kundeemne","Område for Kundeemne","Type af Kundeemne","Potentiel mulighed","Sandsynlighed \nfor salg","Prognose for luk","Vægtet prognose"]
[null,"A. Datum Corporation",{"$nulls":3},"Strategisk",{"v":300000,"d":"kr. 300,000.00"},{"v":0.9,"d":"90%"},"Januar",{"$f":"IFERROR(IF(Kundeemnedata[Sandsynlighed \nfor salg]<>\"\",Kundeemnedata[Sandsynlighed \nfor salg]*Kundeemnedata[Potentiel mulighed],\"\"),\"\")","v":{"v":270000,"d":"kr. 270,000.00"}}]
[null,"Adventure Works",{"$nulls":3},"Strategisk",{"v":200000,"d":"kr. 200,000.00"},{"v":0.1,"d":"10%"},"Februar",{"$f":"IFERROR(IF(Kundeemnedata[Sandsynlighed \nfor salg]<>\"\",Kundeemnedata[Sandsynlighed \nfor salg]*Kundeemnedata[Potentiel mulighed],\"\"),\"\")","v":{"v":20000,"d":"kr. 20,000.00"}}]
[null,"Alpine Ski House",{"$nulls":3},"Taktisk",{"v":100000,"d":"kr. 100,000.00"},{"v":0.2,"d":"20%"},"Marts",{"$f":"IFERROR(IF(Kundeemnedata[Sandsynlighed \nfor salg]<>\"\",Kundeemnedata[Sandsynlighed \nfor salg]*Kundeemnedata[Potentiel mulighed],\"\"),\"\")","v":{"v":20000,"d":"kr. 20,000.00"}}]
[null,"Total",{"$nulls":4},{"$f":"SUBTOTAL(109,Kundeemnedata[Potentiel mulighed])","v":{"v":600000,"d":"kr. 600,000.00"}},null,null,{"$f":"SUBTOTAL(109,Kundeemnedata[Vægtet prognose])","v":{"v":310000,"d":"kr. 310,000.00"}}]

{"sheet":"Salgsprognose ","index":1,"n_rows":21,"n_cols":14,"rows_kept":21,"merged":[[3,1,3,11],[3,12,3,13]]}
[null,{"$f":"Firmanavn","v":"Firmanavn"}]
[null,"Salgsprognose"]
[null,{"$f":"MålerDato","v":"2018-07-24"}]
[null,{"$f":"Firmanavn","v":"Firmanavn"},{"$nulls":10},"FORTROLIGT"]
[null,"Kundeemnets navn","Prognose for januar","Prognose for februar","Prognose for marts","Prognose for april","Prognose for maj","Prognose for juni","Prognose for juli","Prognose for august","Prognose for september","Prognose for oktober","Prognose for november","Prognose for december"]
[null,{"$f":"IFERROR(IF(AND(Kundeemnedata[Kundeemnets navn] <> \"\", ROW(Salgsprognose[Kundeemnets navn])<>SenestePostering),Kundeemnedata[Kundeemnets navn], \"\"),\"\")","v":"A. Datum Corporation"},{"$f":"IFERROR(IF(Kundeemnedata[Prognose for luk] <>\"\",IF(Kundeemnedata[Prognose for luk]= \"Januar\",Kundeemnedata[Vægtet prognose],0),\"\"),\"\")","v":{"v":270000,"d":"kr. 270,000"}},{"$f":"IFERROR(IF(Kundeemnedata[Prognose for luk] <>\"\",IF(Kundeemnedata[Prognose for luk] = \"Februar\",Kundeemnedata[Vægtet prognose],0),\"\"),\"\")","v":{"v":0,"d":"kr. 0"}},{"$f":"IFERROR(IF(Kundeemnedata[Prognose for luk] <>\"\",IF(Kundeemnedata[Prognose for luk] = \"Marts\",Kundeemnedata[Vægtet prognose],0),\"\"),\"\")","v":{"v":0,"d":"kr. 0"}},{"$f":"IFERROR(IF(Kundeemnedata[Prognose for luk] <>\"\",IF(Kundeemnedata[Prognose for luk] = \"April\",Kundeemnedata[Vægtet prognose],0),\"\"),\"\")","v":{"v":0,"d":"kr. 0"}},{"$f":"IFERROR(IF(Kundeemnedata[Prognose for luk] <>\"\",IF(Kundeemnedata[Prognose for luk] = \"Maj\",Kundeemnedata[Vægtet prognose],0),\"\"),\"\")","v":{"v":0,"d":"kr. 0"}},{"$f":"IFERROR(IF(Kundeemnedata[Prognose for luk] <>\"\",IF(Kundeemnedata[Prognose for luk] = \"Juni\",Kundeemnedata[Vægtet prognose],0),\"\"),\"\")","v":{"v":0,"d":"kr. 0"}},{"$f":"IFERROR(IF(Kundeemnedata[Prognose for luk] <>\"\",IF(Kundeemnedata[Prognose for luk] = \"juli\",Kundeemnedata[Vægtet prognose],0),\"\"),\"\")","v":{"v":0,"d":"kr. 0"}},{"$f":"IFERROR(IF(Kundeemnedata[Prognose for luk] <>\"\",IF(Kundeemnedata[Prognose for luk] = \"August\",Kundeemnedata[Vægtet prognose],0),\"\"),\"\")","v":{"v":0,"d":"kr. 0"}},{"$f":"IFERROR(IF(Kundeemnedata[Prognose for luk] <>\"\",IF(Kundeemnedata[Prognose for luk] = \"September\",Kundeemnedata[Vægtet prognose],0),\"\"),\"\")","v":{"v":0,"d":"kr. 0"}},{"$f":"IFERROR(IF(Kundeemnedata[Prognose for luk] <>\"\",IF(Kundeemnedata[Prognose for luk] = \"Oktober\",Kundeemnedata[Vægtet prognose],0),\"\"),\"\")","v":{"v":0,"d":"kr. 0"}},{"$f":"IFERROR(IF(Kundeemnedata[Prognose for luk] <>\"\",IF(Kundeemnedata[Prognose for luk] = \"November\",Kundeemnedata[Vægtet prognose],0),\"\"),\"\")","v":{"v":0,"d":"kr. 0"}},{"$f":"IFERROR(IF(Kundeemnedata[Prognose for luk] <>\"\",IF(Kundeemnedata[Prognose for luk] = \"December\",Kundeemnedata[Vægtet prognose],0),\"\"),\"\")","v":{"v":0,"d":"kr. 0"}}]
[null,{"$f":"IFERROR(IF(AND(Kundeemnedata[Kundeemnets navn] <> \"\", ROW(Salgsprognose[Kundeemnets navn])<>SenestePostering),Kundeemnedata[Kundeemnets navn], \"\"),\"\")","v":"Adventure Works"},{"$f":"IFERROR(IF(Kundeemnedata[Prognose for luk] <>\"\",IF(Kundeemnedata[Prognose for luk]= \"Januar\",Kundeemnedata[Vægtet prognose],0),\"\"),\"\")","v":{"v":0,"d":"kr. 0"}},{"$f":"IFERROR(IF(Kundeemnedata[Prognose for luk] <>\"\",IF(Kundeemnedata[Prognose for luk] = \"Februar\",Kundeemnedata[Vægtet prognose],0),\"\"),\"\")","v":{"v":20000,"d":"kr. 20,000"}},{"$f":"IFERROR(IF(Kundeemnedata[Prognose for luk] <>\"\",IF(Kundeemnedata[Prognose for luk] = \"Marts\",Kundeemnedata[Vægtet prognose],0),\"\"),\"\")","v":{"v":0,"d":"kr. 0"}},{"$f":"IFERROR(IF(Kundeemnedata[Prognose for luk] <>\"\",IF(Kundeemnedata[Prognose for luk] = \"April\",Kundeemnedata[Vægtet prognose],0),\"\"),\"\")","v":{"v":0,"d":"kr. 0"}},{"$f":"IFERROR(IF(Kundeemnedata[Prognose for luk] <>\"\",IF(Kundeemnedata[Prognose for luk] = \"Maj\",Kundeemnedata[Vægtet prognose],0),\"\"),\"\")","v":{"v":0,"d":"kr. 0"}},{"$f":"IFERROR(IF(Kundeemnedata[Prognose for luk] <>\"\",IF(Kundeemnedata[Prognose for luk] = \"Juni\",Kundeemnedata[Vægtet prognose],0),\"\"),\"\")","v":{"v":0,"d":"kr. 0"}},{"$f":"IFERROR(IF(Kundeemnedata[Prognose for luk] <>\"\",IF(Kundeemnedata[Prognose for luk] = \"juli\",Kundeemnedata[Vægtet prognose],0),\"\"),\"\")","v":{"v":0,"d":"kr. 0"}},{"$f":"IFERROR(IF(Kundeemnedata[Prognose for luk] <>\"\",IF(Kundeemnedata[Prognose for luk] = \"August\",Kundeemnedata[Vægtet prognose],0),\"\"),\"\")","v":{"v":0,"d":"kr. 0"}},{"$f":"IFERROR(IF(Kundeemnedata[Prognose for luk] <>\"\",IF(Kundeemnedata[Prognose for luk] = \"September\",Kundeemnedata[Vægtet prognose],0),\"\"),\"\")","v":{"v":0,"d":"kr. 0"}},{"$f":"IFERROR(IF(Kundeemnedata[Prognose for luk] <>\"\",IF(Kundeemnedata[Prognose for luk] = \"Oktober\",Kundeemnedata[Vægtet prognose],0),\"\"),\"\")","v":{"v":0,"d":"kr. 0"}},{"$f":"IFERROR(IF(Kundeemnedata[Prognose for luk] <>\"\",IF(Kundeemnedata[Prognose for luk] = \"November\",Kundeemnedata[Vægtet prognose],0),\"\"),\"\")","v":{"v":0,"d":"kr. 0"}},{"$f":"IFERROR(IF(Kundeemnedata[Prognose for luk] <>\"\",IF(Kundeemnedata[Prognose for luk] = \"December\",Kundeemnedata[Vægtet prognose],0),\"\"),\"\")","v":{"v":0,"d":"kr. 0"}}]
[null,{"$f":"IFERROR(IF(AND(Kundeemnedata[Kundeemnets navn] <> \"\", ROW(Salgsprognose[Kundeemnets navn])<>SenestePostering),Kundeemnedata[Kundeemnets navn], \"\"),\"\")","v":"Alpine Ski House"},{"$f":"IFERROR(IF(Kundeemnedata[Prognose for luk] <>\"\",IF(Kundeemnedata[Prognose for luk]= \"Januar\",Kundeemnedata[Vægtet prognose],0),\"\"),\"\")","v":{"v":0,"d":"kr. 0"}},{"$f":"IFERROR(IF(Kundeemnedata[Prognose for luk] <>\"\",IF(Kundeemnedata[Prognose for luk] = \"Februar\",Kundeemnedata[Vægtet prognose],0),\"\"),\"\")","v":{"v":0,"d":"kr. 0"}},{"$f":"IFERROR(IF(Kundeemnedata[Prognose for luk] <>\"\",IF(Kundeemnedata[Prognose for luk] = \"Marts\",Kundeemnedata[Vægtet prognose],0),\"\"),\"\")","v":{"v":20000,"d":"kr. 20,000"}},{"$f":"IFERROR(IF(Kundeemnedata[Prognose for luk] <>\"\",IF(Kundeemnedata[Prognose for luk] = \"April\",Kundeemnedata[Vægtet prognose],0),\"\"),\"\")","v":{"v":0,"d":"kr. 0"}},{"$f":"IFERROR(IF(Kundeemnedata[Prognose for luk] <>\"\",IF(Kundeemnedata[Prognose for luk] = \"Maj\",Kundeemnedata[Vægtet prognose],0),\"\"),\"\")","v":{"v":0,"d":"kr. 0"}},{"$f":"IFERROR(IF(Kundeemnedata[Prognose for luk] <>\"\",IF(Kundeemnedata[Prognose for luk] = \"Juni\",Kundeemnedata[Vægtet prognose],0),\"\"),\"\")","v":{"v":0,"d":"kr. 0"}},{"$f":"IFERROR(IF(Kundeemnedata[Prognose for luk] <>\"\",IF(Kundeemnedata[Prognose for luk] = \"juli\",Kundeemnedata[Vægtet prognose],0),\"\"),\"\")","v":{"v":0,"d":"kr. 0"}},{"$f":"IFERROR(IF(Kundeemnedata[Prognose for luk] <>\"\",IF(Kundeemnedata[Prognose for luk] = \"August\",Kundeemnedata[Vægtet prognose],0),\"\"),\"\")","v":{"v":0,"d":"kr. 0"}},{"$f":"IFERROR(IF(Kundeemnedata[Prognose for luk] <>\"\",IF(Kundeemnedata[Prognose for luk] = \"September\",Kundeemnedata[Vægtet prognose],0),\"\"),\"\")","v":{"v":0,"d":"kr. 0"}},{"$f":"IFERROR(IF(Kundeemnedata[Prognose for luk] <>\"\",IF(Kundeemnedata[Prognose for luk] = \"Oktober\",Kundeemnedata[Vægtet prognose],0),\"\"),\"\")","v":{"v":0,"d":"kr. 0"}},{"$f":"IFERROR(IF(Kundeemnedata[Prognose for luk] <>\"\",IF(Kundeemnedata[Prognose for luk] = \"November\",Kundeemnedata[Vægtet prognose],0),\"\"),\"\")","v":{"v":0,"d":"kr. 0"}},{"$f":"IFERROR(IF(Kundeemnedata[Prognose for luk] <>\"\",IF(Kundeemnedata[Prognose for luk] = \"December\",Kundeemnedata[Vægtet prognose],0),\"\"),\"\")","v":{"v":0,"d":"kr. 0"}}]
[null,{"$f":"IFERROR(IF(AND(Kundeemnedata[Kundeemnets navn] <> \"\", ROW(Salgsprognose[Kundeemnets navn])<>SenestePostering),Kundeemnedata[Kundeemnets navn], \"\"),\"\")","v":""},{"$f":"IFERROR(IF(Kundeemnedata[Prognose for luk] <>\"\",IF(Kundeemnedata[Prognose for luk]= \"Januar\",Kundeemnedata[Vægtet prognose],0),\"\"),\"\")","v":""},{"$f":"IFERROR(IF(Kundeemnedata[Prognose for luk] <>\"\",IF(Kundeemnedata[Prognose for luk] = \"Februar\",Kundeemnedata[Vægtet prognose],0),\"\"),\"\")","v":""},{"$f":"IFERROR(IF(Kundeemnedata[Prognose for luk] <>\"\",IF(Kundeemnedata[Prognose for luk] = \"Marts\",Kundeemnedata[Vægtet prognose],0),\"\"),\"\")","v":""},{"$f":"IFERROR(IF(Kundeemnedata[Prognose for luk] <>\"\",IF(Kundeemnedata[Prognose for luk] = \"April\",Kundeemnedata[Vægtet prognose],0),\"\"),\"\")","v":""},{"$f":"IFERROR(IF(Kundeemnedata[Prognose for luk] <>\"\",IF(Kundeemnedata[Prognose for luk] = \"Maj\",Kundeemnedata[Vægtet prognose],0),\"\"),\"\")","v":""},{"$f":"IFERROR(IF(Kundeemnedata[Prognose for luk] <>\"\",IF(Kundeemnedata[Prognose for luk] = \"Juni\",Kundeemnedata[Vægtet prognose],0),\"\"),\"\")","v":""},{"$f":"IFERROR(IF(Kundeemnedata[Prognose for luk] <>\"\",IF(Kundeemnedata[Prognose for luk] = \"juli\",Kundeemnedata[Vægtet prognose],0),\"\"),\"\")","v":""},{"$f":"IFERROR(IF(Kundeemnedata[Prognose for luk] <>\"\",IF(Kundeemnedata[Prognose for luk] = \"August\",Kundeemnedata[Vægtet prognose],0),\"\"),\"\")","v":""},{"$f":"IFERROR(IF(Kundeemnedata[Prognose for luk] <>\"\",IF(Kundeemnedata[Prognose for luk] = \"September\",Kundeemnedata[Vægtet prognose],0),\"\"),\"\")","v":""},{"$f":"IFERROR(IF(Kundeemnedata[Prognose for luk] <>\"\",IF(Kundeemnedata[Prognose for luk] = \"Oktober\",Kundeemnedata[Vægtet prognose],0),\"\"),\"\")","v":""},{"$f":"IFERROR(IF(Kundeemnedata[Prognose for luk] <>\"\",IF(Kundeemnedata[Prognose for luk] = \"November\",Kundeemnedata[Vægtet prognose],0),\"\"),\"\")","v":""},{"$f":"IFERROR(IF(Kundeemnedata[Prognose for luk] <>\"\",IF(Kundeemnedata[Prognose for luk] = \"December\",Kundeemnedata[Vægtet prognose],0),\"\"),\"\")","v":""}]
[null,{"$f":"IFERROR(IF(AND(Kundeemnedata[Kundeemnets navn] <> \"\", ROW(Salgsprognose[Kundeemnets navn])<>SenestePostering),Kundeemnedata[Kundeemnets navn], \"\"),\"\")","v":""},{"$f":"IFERROR(IF(Kundeemnedata[Prognose for luk] <>\"\",IF(Kundeemnedata[Prognose for luk]= \"Januar\",Kundeemnedata[Vægtet prognose],0),\"\"),\"\")","v":""},{"$f":"IFERROR(IF(Kundeemnedata[Prognose for luk] <>\"\",IF(Kundeemnedata[Prognose for luk] = \"Februar\",Kundeemnedata[Vægtet prognose],0),\"\"),\"\")","v":""},{"$f":"IFERROR(IF(Kundeemnedata[Prognose for luk] <>\"\",IF(Kundeemnedata[Prognose for luk] = \"Marts\",Kundeemnedata[Vægtet prognose],0),\"\"),\"\")","v":""},{"$f":"IFERROR(IF(Kundeemnedata[Prognose for luk] <>\"\",IF(Kundeemnedata[Prognose for luk] = \"April\",Kundeemnedata[Vægtet prognose],0),\"\"),\"\")","v":""},{"$f":"IFERROR(IF(Kundeemnedata[Prognose for luk] <>\"\",IF(Kundeemnedata[Prognose for luk] = \"Maj\",Kundeemnedata[Vægtet prognose],0),\"\"),\"\")","v":""},{"$f":"IFERROR(IF(Kundeemnedata[Prognose for luk] <>\"\",IF(Kundeemnedata[Prognose for luk] = \"Juni\",Kundeemnedata[Vægtet prognose],0),\"\"),\"\")","v":""},{"$f":"IFERROR(IF(Kundeemnedata[Prognose for luk] <>\"\",IF(Kundeemnedata[Prognose for luk] = \"juli\",Kundeemnedata[Vægtet prognose],0),\"\"),\"\")","v":""},{"$f":"IFERROR(IF(Kundeemnedata[Prognose for luk] <>\"\",IF(Kundeemnedata[Prognose for luk] = \"August\",Kundeemnedata[Vægtet prognose],0),\"\"),\"\")","v":""},{"$f":"IFERROR(IF(Kundeemnedata[Prognose for luk] <>\"\",IF(Kundeemnedata[Prognose for luk] = \"September\",Kundeemnedata[Vægtet prognose],0),\"\"),\"\")","v":""},{"$f":"IFERROR(IF(Kundeemnedata[Prognose for luk] <>\"\",IF(Kundeemnedata[Prognose for luk] = \"Oktober\",Kundeemnedata[Vægtet prognose],0),\"\"),\"\")","v":""},{"$f":"IFERROR(IF(Kundeemnedata[Prognose for luk] <>\"\",IF(Kundeemnedata[Prognose for luk] = \"November\",Kundeemnedata[Vægtet prognose],0),\"\"),\"\")","v":""},{"$f":"IFERROR(IF(Kundeemnedata[Prognose for luk] <>\"\",IF(Kundeemnedata[Prognose for luk] = \"December\",Kundeemnedata[Vægtet prognose],0),\"\"),\"\")","v":""}]
[null,{"$f":"IFERROR(IF(AND(Kundeemnedata[Kundeemnets navn] <> \"\", ROW(Salgsprognose[Kundeemnets navn])<>SenestePostering),Kundeemnedata[Kundeemnets navn], \"\"),\"\")","v":""},{"$f":"IFERROR(IF(Kundeemnedata[Prognose for luk] <>\"\",IF(Kundeemnedata[Prognose for luk]= \"Januar\",Kundeemnedata[Vægtet prognose],0),\"\"),\"\")","v":""},{"$f":"IFERROR(IF(Kundeemnedata[Prognose for luk] <>\"\",IF(Kundeemnedata[Prognose for luk] = \"Februar\",Kundeemnedata[Vægtet prognose],0),\"\"),\"\")","v":""},{"$f":"IFERROR(IF(Kundeemnedata[Prognose for luk] <>\"\",IF(Kundeemnedata[Prognose for luk] = \"Marts\",Kundeemnedata[Vægtet prognose],0),\"\"),\"\")","v":""},{"$f":"IFERROR(IF(Kundeemnedata[Prognose for luk] <>\"\",IF(Kundeemnedata[Prognose for luk] = \"April\",Kundeemnedata[Vægtet prognose],0),\"\"),\"\")","v":""},{"$f":"IFERROR(IF(Kundeemnedata[Prognose for luk] <>\"\",IF(Kundeemnedata[Prognose for luk] = \"Maj\",Kundeemnedata[Vægtet prognose],0),\"\"),\"\")","v":""},{"$f":"IFERROR(IF(Kundeemnedata[Prognose for luk] <>\"\",IF(Kundeemnedata[Prognose for luk] = \"Juni\",Kundeemnedata[Vægtet prognose],0),\"\"),\"\")","v":""},{"$f":"IFERROR(IF(Kundeemnedata[Prognose for luk] <>\"\",IF(Kundeemnedata[Prognose for luk] = \"juli\",Kundeemnedata[Vægtet prognose],0),\"\"),\"\")","v":""},{"$f":"IFERROR(IF(Kundeemnedata[Prognose for luk] <>\"\",IF(Kundeemnedata[Prognose for luk] = \"August\",Kundeemnedata[Vægtet prognose],0),\"\"),\"\")","v":""},{"$f":"IFERROR(IF(Kundeemnedata[Prognose for luk] <>\"\",IF(Kundeemnedata[Prognose for luk] = \"September\",Kundeemnedata[Vægtet prognose],0),\"\"),\"\")","v":""},{"$f":"IFERROR(IF(Kundeemnedata[Prognose for luk] <>\"\",IF(Kundeemnedata[Prognose for luk] = \"Oktober\",Kundeemnedata[Vægtet prognose],0),\"\"),\"\")","v":""},{"$f":"IFERROR(IF(Kundeemnedata[Prognose for luk] <>\"\",IF(Kundeemnedata[Prognose for luk] = \"November\",Kundeemnedata[Vægtet prognose],0),\"\"),\"\")","v":""},{"$f":"IFERROR(IF(Kundeemnedata[Prognose for luk] <>\"\",IF(Kundeemnedata[Prognose for luk] = \"December\",Kundeemnedata[Vægtet prognose],0),\"\"),\"\")","v":""}]
[null,{"$f":"IFERROR(IF(AND(Kundeemnedata[Kundeemnets navn] <> \"\", ROW(Salgsprognose[Kundeemnets navn])<>SenestePostering),Kundeemnedata[Kundeemnets navn], \"\"),\"\")","v":""},{"$f":"IFERROR(IF(Kundeemnedata[Prognose for luk] <>\"\",IF(Kundeemnedata[Prognose for luk]= \"Januar\",Kundeemnedata[Vægtet prognose],0),\"\"),\"\")","v":""},{"$f":"IFERROR(IF(Kundeemnedata[Prognose for luk] <>\"\",IF(Kundeemnedata[Prognose for luk] = \"Februar\",Kundeemnedata[Vægtet prognose],0),\"\"),\"\")","v":""},{"$f":"IFERROR(IF(Kundeemnedata[Prognose for luk] <>\"\",IF(Kundeemnedata[Prognose for luk] = \"Marts\",Kundeemnedata[Vægtet prognose],0),\"\"),\"\")","v":""},{"$f":"IFERROR(IF(Kundeemnedata[Prognose for luk] <>\"\",IF(Kundeemnedata[Prognose for luk] = \"April\",Kundeemnedata[Vægtet prognose],0),\"\"),\"\")","v":""},{"$f":"IFERROR(IF(Kundeemnedata[Prognose for luk] <>\"\",IF(Kundeemnedata[Prognose for luk] = \"Maj\",Kundeemnedata[Vægtet prognose],0),\"\"),\"\")","v":""},{"$f":"IFERROR(IF(Kundeemnedata[Prognose for luk] <>\"\",IF(Kundeemnedata[Prognose for luk] = \"Juni\",Kundeemnedata[Vægtet prognose],0),\"\"),\"\")","v":""},{"$f":"IFERROR(IF(Kundeemnedata[Prognose for luk] <>\"\",IF(Kundeemnedata[Prognose for luk] = \"juli\",Kundeemnedata[Vægtet prognose],0),\"\"),\"\")","v":""},{"$f":"IFERROR(IF(Kundeemnedata[Prognose for luk] <>\"\",IF(Kundeemnedata[Prognose for luk] = \"August\",Kundeemnedata[Vægtet prognose],0),\"\"),\"\")","v":""},{"$f":"IFERROR(IF(Kundeemnedata[Prognose for luk] <>\"\",IF(Kundeemnedata[Prognose for luk] = \"September\",Kundeemnedata[Vægtet prognose],0),\"\"),\"\")","v":""},{"$f":"IFERROR(IF(Kundeemnedata[Prognose for luk] <>\"\",IF(Kundeemnedata[Prognose for luk] = \"Oktober\",Kundeemnedata[Vægtet prognose],0),\"\"),\"\")","v":""},{"$f":"IFERROR(IF(Kundeemnedata[Prognose for luk] <>\"\",IF(Kundeemnedata[Prognose for luk] = \"November\",Kundeemnedata[Vægtet prognose],0),\"\"),\"\")","v":""},{"$f":"IFERROR(IF(Kundeemnedata[Prognose for luk] <>\"\",IF(Kundeemnedata[Prognose for luk] = \"December\",Kundeemnedata[Vægtet prognose],0),\"\"),\"\")","v":""}]
[null,{"$f":"IFERROR(IF(AND(Kundeemnedata[Kundeemnets navn] <> \"\", ROW(Salgsprognose[Kundeemnets navn])<>SenestePostering),Kundeemnedata[Kundeemnets navn], \"\"),\"\")","v":""},{"$f":"IFERROR(IF(Kundeemnedata[Prognose for luk] <>\"\",IF(Kundeemnedata[Prognose for luk]= \"Januar\",Kundeemnedata[Vægtet prognose],0),\"\"),\"\")","v":""},{"$f":"IFERROR(IF(Kundeemnedata[Prognose for luk] <>\"\",IF(Kundeemnedata[Prognose for luk] = \"Februar\",Kundeemnedata[Vægtet prognose],0),\"\"),\"\")","v":""},{"$f":"IFERROR(IF(Kundeemnedata[Prognose for luk] <>\"\",IF(Kundeemnedata[Prognose for luk] = \"Marts\",Kundeemnedata[Vægtet prognose],0),\"\"),\"\")","v":""},{"$f":"IFERROR(IF(Kundeemnedata[Prognose for luk] <>\"\",IF(Kundeemnedata[Prognose for luk] = \"April\",Kundeemnedata[Vægtet prognose],0),\"\"),\"\")","v":""},{"$f":"IFERROR(IF(Kundeemnedata[Prognose for luk] <>\"\",IF(Kundeemnedata[Prognose for luk] = \"Maj\",Kundeemnedata[Vægtet prognose],0),\"\"),\"\")","v":""},{"$f":"IFERROR(IF(Kundeemnedata[Prognose for luk] <>\"\",IF(Kundeemnedata[Prognose for luk] = \"Juni\",Kundeemnedata[Vægtet prognose],0),\"\"),\"\")","v":""},{"$f":"IFERROR(IF(Kundeemnedata[Prognose for luk] <>\"\",IF(Kundeemnedata[Prognose for luk] = \"juli\",Kundeemnedata[Vægtet prognose],0),\"\"),\"\")","v":""},{"$f":"IFERROR(IF(Kundeemnedata[Prognose for luk] <>\"\",IF(Kundeemnedata[Prognose for luk] = \"August\",Kundeemnedata[Vægtet prognose],0),\"\"),\"\")","v":""},{"$f":"IFERROR(IF(Kundeemnedata[Prognose for luk] <>\"\",IF(Kundeemnedata[Prognose for luk] = \"September\",Kundeemnedata[Vægtet prognose],0),\"\"),\"\")","v":""},{"$f":"IFERROR(IF(Kundeemnedata[Prognose for luk] <>\"\",IF(Kundeemnedata[Prognose for luk] = \"Oktober\",Kundeemnedata[Vægtet prognose],0),\"\"),\"\")","v":""},{"$f":"IFERROR(IF(Kundeemnedata[Prognose for luk] <>\"\",IF(Kundeemnedata[Prognose for luk] = \"November\",Kundeemnedata[Vægtet prognose],0),\"\"),\"\")","v":""},{"$f":"IFERROR(IF(Kundeemnedata[Prognose for luk] <>\"\",IF(Kundeemnedata[Prognose for luk] = \"December\",Kundeemnedata[Vægtet prognose],0),\"\"),\"\")","v":""}]
[null,{"$f":"IFERROR(IF(AND(Kundeemnedata[Kundeemnets navn] <> \"\", ROW(Salgsprognose[Kundeemnets navn])<>SenestePostering),Kundeemnedata[Kundeemnets navn], \"\"),\"\")","v":""},{"$f":"IFERROR(IF(Kundeemnedata[Prognose for luk] <>\"\",IF(Kundeemnedata[Prognose for luk]= \"Januar\",Kundeemnedata[Vægtet prognose],0),\"\"),\"\")","v":""},{"$f":"IFERROR(IF(Kundeemnedata[Prognose for luk] <>\"\",IF(Kundeemnedata[Prognose for luk] = \"Februar\",Kundeemnedata[Vægtet prognose],0),\"\"),\"\")","v":""},{"$f":"IFERROR(IF(Kundeemnedata[Prognose for luk] <>\"\",IF(Kundeemnedata[Prognose for luk] = \"Marts\",Kundeemnedata[Vægtet prognose],0),\"\"),\"\")","v":""},{"$f":"IFERROR(IF(Kundeemnedata[Prognose for luk] <>\"\",IF(Kundeemnedata[Prognose for luk] = \"April\",Kundeemnedata[Vægtet prognose],0),\"\"),\"\")","v":""},{"$f":"IFERROR(IF(Kundeemnedata[Prognose for luk] <>\"\",IF(Kundeemnedata[Prognose for luk] = \"Maj\",Kundeemnedata[Vægtet prognose],0),\"\"),\"\")","v":""},{"$f":"IFERROR(IF(Kundeemnedata[Prognose for luk] <>\"\",IF(Kundeemnedata[Prognose for luk] = \"Juni\",Kundeemnedata[Vægtet prognose],0),\"\"),\"\")","v":""},{"$f":"IFERROR(IF(Kundeemnedata[Prognose for luk] <>\"\",IF(Kundeemnedata[Prognose for luk] = \"juli\",Kundeemnedata[Vægtet prognose],0),\"\"),\"\")","v":""},{"$f":"IFERROR(IF(Kundeemnedata[Prognose for luk] <>\"\",IF(Kundeemnedata[Prognose for luk] = \"August\",Kundeemnedata[Vægtet prognose],0),\"\"),\"\")","v":""},{"$f":"IFERROR(IF(Kundeemnedata[Prognose for luk] <>\"\",IF(Kundeemnedata[Prognose for luk] = \"September\",Kundeemnedata[Vægtet prognose],0),\"\"),\"\")","v":""},{"$f":"IFERROR(IF(Kundeemnedata[Prognose for luk] <>\"\",IF(Kundeemnedata[Prognose for luk] = \"Oktober\",Kundeemnedata[Vægtet prognose],0),\"\"),\"\")","v":""},{"$f":"IFERROR(IF(Kundeemnedata[Prognose for luk] <>\"\",IF(Kundeemnedata[Prognose for luk] = \"November\",Kundeemnedata[Vægtet prognose],0),\"\"),\"\")","v":""},{"$f":"IFERROR(IF(Kundeemnedata[Prognose for luk] <>\"\",IF(Kundeemnedata[Prognose for luk] = \"December\",Kundeemnedata[Vægtet prognose],0),\"\"),\"\")","v":""}]
[null,{"$f":"IFERROR(IF(AND(Kundeemnedata[Kundeemnets navn] <> \"\", ROW(Salgsprognose[Kundeemnets navn])<>SenestePostering),Kundeemnedata[Kundeemnets navn], \"\"),\"\")","v":""},{"$f":"IFERROR(IF(Kundeemnedata[Prognose for luk] <>\"\",IF(Kundeemnedata[Prognose for luk]= \"Januar\",Kundeemnedata[Vægtet prognose],0),\"\"),\"\")","v":""},{"$f":"IFERROR(IF(Kundeemnedata[Prognose for luk] <>\"\",IF(Kundeemnedata[Prognose for luk] = \"Februar\",Kundeemnedata[Vægtet prognose],0),\"\"),\"\")","v":""},{"$f":"IFERROR(IF(Kundeemnedata[Prognose for luk] <>\"\",IF(Kundeemnedata[Prognose for luk] = \"Marts\",Kundeemnedata[Vægtet prognose],0),\"\"),\"\")","v":""},{"$f":"IFERROR(IF(Kundeemnedata[Prognose for luk] <>\"\",IF(Kundeemnedata[Prognose for luk] = \"April\",Kundeemnedata[Vægtet prognose],0),\"\"),\"\")","v":""},{"$f":"IFERROR(IF(Kundeemnedata[Prognose for luk] <>\"\",IF(Kundeemnedata[Prognose for luk] = \"Maj\",Kundeemnedata[Vægtet prognose],0),\"\"),\"\")","v":""},{"$f":"IFERROR(IF(Kundeemnedata[Prognose for luk] <>\"\",IF(Kundeemnedata[Prognose for luk] = \"Juni\",Kundeemnedata[Vægtet prognose],0),\"\"),\"\")","v":""},{"$f":"IFERROR(IF(Kundeemnedata[Prognose for luk] <>\"\",IF(Kundeemnedata[Prognose for luk] = \"juli\",Kundeemnedata[Vægtet prognose],0),\"\"),\"\")","v":""},{"$f":"IFERROR(IF(Kundeemnedata[Prognose for luk] <>\"\",IF(Kundeemnedata[Prognose for luk] = \"August\",Kundeemnedata[Vægtet prognose],0),\"\"),\"\")","v":""},{"$f":"IFERROR(IF(Kundeemnedata[Prognose for luk] <>\"\",IF(Kundeemnedata[Prognose for luk] = \"September\",Kundeemnedata[Vægtet prognose],0),\"\"),\"\")","v":""},{"$f":"IFERROR(IF(Kundeemnedata[Prognose for luk] <>\"\",IF(Kundeemnedata[Prognose for luk] = \"Oktober\",Kundeemnedata[Vægtet prognose],0),\"\"),\"\")","v":""},{"$f":"IFERROR(IF(Kundeemnedata[Prognose for luk] <>\"\",IF(Kundeemnedata[Prognose for luk] = \"November\",Kundeemnedata[Vægtet prognose],0),\"\"),\"\")","v":""},{"$f":"IFERROR(IF(Kundeemnedata[Prognose for luk] <>\"\",IF(Kundeemnedata[Prognose for luk] = \"December\",Kundeemnedata[Vægtet prognose],0),\"\"),\"\")","v":""}]
[null,{"$f":"IFERROR(IF(AND(Kundeemnedata[Kundeemnets navn] <> \"\", ROW(Salgsprognose[Kundeemnets navn])<>SenestePostering),Kundeemnedata[Kundeemnets navn], \"\"),\"\")","v":""},{"$f":"IFERROR(IF(Kundeemnedata[Prognose for luk] <>\"\",IF(Kundeemnedata[Prognose for luk]= \"Januar\",Kundeemnedata[Vægtet prognose],0),\"\"),\"\")","v":""},{"$f":"IFERROR(IF(Kundeemnedata[Prognose for luk] <>\"\",IF(Kundeemnedata[Prognose for luk] = \"Februar\",Kundeemnedata[Vægtet prognose],0),\"\"),\"\")","v":""},{"$f":"IFERROR(IF(Kundeemnedata[Prognose for luk] <>\"\",IF(Kundeemnedata[Prognose for luk] = \"Marts\",Kundeemnedata[Vægtet prognose],0),\"\"),\"\")","v":""},{"$f":"IFERROR(IF(Kundeemnedata[Prognose for luk] <>\"\",IF(Kundeemnedata[Prognose for luk] = \"April\",Kundeemnedata[Vægtet prognose],0),\"\"),\"\")","v":""},{"$f":"IFERROR(IF(Kundeemnedata[Prognose for luk] <>\"\",IF(Kundeemnedata[Prognose for luk] = \"Maj\",Kundeemnedata[Vægtet prognose],0),\"\"),\"\")","v":""},{"$f":"IFERROR(IF(Kundeemnedata[Prognose for luk] <>\"\",IF(Kundeemnedata[Prognose for luk] = \"Juni\",Kundeemnedata[Vægtet prognose],0),\"\"),\"\")","v":""},{"$f":"IFERROR(IF(Kundeemnedata[Prognose for luk] <>\"\",IF(Kundeemnedata[Prognose for luk] = \"juli\",Kundeemnedata[Vægtet prognose],0),\"\"),\"\")","v":""},{"$f":"IFERROR(IF(Kundeemnedata[Prognose for luk] <>\"\",IF(Kundeemnedata[Prognose for luk] = \"August\",Kundeemnedata[Vægtet prognose],0),\"\"),\"\")","v":""},{"$f":"IFERROR(IF(Kundeemnedata[Prognose for luk] <>\"\",IF(Kundeemnedata[Prognose for luk] = \"September\",Kundeemnedata[Vægtet prognose],0),\"\"),\"\")","v":""},{"$f":"IFERROR(IF(Kundeemnedata[Prognose for luk] <>\"\",IF(Kundeemnedata[Prognose for luk] = \"Oktober\",Kundeemnedata[Vægtet prognose],0),\"\"),\"\")","v":""},{"$f":"IFERROR(IF(Kundeemnedata[Prognose for luk] <>\"\",IF(Kundeemnedata[Prognose for luk] = \"November\",Kundeemnedata[Vægtet prognose],0),\"\"),\"\")","v":""},{"$f":"IFERROR(IF(Kundeemnedata[Prognose for luk] <>\"\",IF(Kundeemnedata[Prognose for luk] = \"December\",Kundeemnedata[Vægtet prognose],0),\"\"),\"\")","v":""}]
[null,{"$f":"IFERROR(IF(AND(Kundeemnedata[Kundeemnets navn] <> \"\", ROW(Salgsprognose[Kundeemnets navn])<>SenestePostering),Kundeemnedata[Kundeemnets navn], \"\"),\"\")","v":""},{"$f":"IFERROR(IF(Kundeemnedata[Prognose for luk] <>\"\",IF(Kundeemnedata[Prognose for luk]= \"Januar\",Kundeemnedata[Vægtet prognose],0),\"\"),\"\")","v":""},{"$f":"IFERROR(IF(Kundeemnedata[Prognose for luk] <>\"\",IF(Kundeemnedata[Prognose for luk] = \"Februar\",Kundeemnedata[Vægtet prognose],0),\"\"),\"\")","v":""},{"$f":"IFERROR(IF(Kundeemnedata[Prognose for luk] <>\"\",IF(Kundeemnedata[Prognose for luk] = \"Marts\",Kundeemnedata[Vægtet prognose],0),\"\"),\"\")","v":""},{"$f":"IFERROR(IF(Kundeemnedata[Prognose for luk] <>\"\",IF(Kundeemnedata[Prognose for luk] = \"April\",Kundeemnedata[Vægtet prognose],0),\"\"),\"\")","v":""},{"$f":"IFERROR(IF(Kundeemnedata[Prognose for luk] <>\"\",IF(Kundeemnedata[Prognose for luk] = \"Maj\",Kundeemnedata[Vægtet prognose],0),\"\"),\"\")","v":""},{"$f":"IFERROR(IF(Kundeemnedata[Prognose for luk] <>\"\",IF(Kundeemnedata[Prognose for luk] = \"Juni\",Kundeemnedata[Vægtet prognose],0),\"\"),\"\")","v":""},{"$f":"IFERROR(IF(Kundeemnedata[Prognose for luk] <>\"\",IF(Kundeemnedata[Prognose for luk] = \"juli\",Kundeemnedata[Vægtet prognose],0),\"\"),\"\")","v":""},{"$f":"IFERROR(IF(Kundeemnedata[Prognose for luk] <>\"\",IF(Kundeemnedata[Prognose for luk] = \"August\",Kundeemnedata[Vægtet prognose],0),\"\"),\"\")","v":""},{"$f":"IFERROR(IF(Kundeemnedata[Prognose for luk] <>\"\",IF(Kundeemnedata[Prognose for luk] = \"September\",Kundeemnedata[Vægtet prognose],0),\"\"),\"\")","v":""},{"$f":"IFERROR(IF(Kundeemnedata[Prognose for luk] <>\"\",IF(Kundeemnedata[Prognose for luk] = \"Oktober\",Kundeemnedata[Vægtet prognose],0),\"\"),\"\")","v":""},{"$f":"IFERROR(IF(Kundeemnedata[Prognose for luk] <>\"\",IF(Kundeemnedata[Prognose for luk] = \"November\",Kundeemnedata[Vægtet prognose],0),\"\"),\"\")","v":""},{"$f":"IFERROR(IF(Kundeemnedata[Prognose for luk] <>\"\",IF(Kundeemnedata[Prognose for luk] = \"December\",Kundeemnedata[Vægtet prognose],0),\"\"),\"\")","v":""}]
[null,{"$f":"IFERROR(IF(AND(Kundeemnedata[Kundeemnets navn] <> \"\", ROW(Salgsprognose[Kundeemnets navn])<>SenestePostering),Kundeemnedata[Kundeemnets navn], \"\"),\"\")","v":""},{"$f":"IFERROR(IF(Kundeemnedata[Prognose for luk] <>\"\",IF(Kundeemnedata[Prognose for luk]= \"Januar\",Kundeemnedata[Vægtet prognose],0),\"\"),\"\")","v":""},{"$f":"IFERROR(IF(Kundeemnedata[Prognose for luk] <>\"\",IF(Kundeemnedata[Prognose for luk] = \"Februar\",Kundeemnedata[Vægtet prognose],0),\"\"),\"\")","v":""},{"$f":"IFERROR(IF(Kundeemnedata[Prognose for luk] <>\"\",IF(Kundeemnedata[Prognose for luk] = \"Marts\",Kundeemnedata[Vægtet prognose],0),\"\"),\"\")","v":""},{"$f":"IFERROR(IF(Kundeemnedata[Prognose for luk] <>\"\",IF(Kundeemnedata[Prognose for luk] = \"April\",Kundeemnedata[Vægtet prognose],0),\"\"),\"\")","v":""},{"$f":"IFERROR(IF(Kundeemnedata[Prognose for luk] <>\"\",IF(Kundeemnedata[Prognose for luk] = \"Maj\",Kundeemnedata[Vægtet prognose],0),\"\"),\"\")","v":""},{"$f":"IFERROR(IF(Kundeemnedata[Prognose for luk] <>\"\",IF(Kundeemnedata[Prognose for luk] = \"Juni\",Kundeemnedata[Vægtet prognose],0),\"\"),\"\")","v":""},{"$f":"IFERROR(IF(Kundeemnedata[Prognose for luk] <>\"\",IF(Kundeemnedata[Prognose for luk] = \"juli\",Kundeemnedata[Vægtet prognose],0),\"\"),\"\")","v":""},{"$f":"IFERROR(IF(Kundeemnedata[Prognose for luk] <>\"\",IF(Kundeemnedata[Prognose for luk] = \"August\",Kundeemnedata[Vægtet prognose],0),\"\"),\"\")","v":""},{"$f":"IFERROR(IF(Kundeemnedata[Prognose for luk] <>\"\",IF(Kundeemnedata[Prognose for luk] = \"September\",Kundeemnedata[Vægtet prognose],0),\"\"),\"\")","v":""},{"$f":"IFERROR(IF(Kundeemnedata[Prognose for luk] <>\"\",IF(Kundeemnedata[Prognose for luk] = \"Oktober\",Kundeemnedata[Vægtet prognose],0),\"\"),\"\")","v":""},{"$f":"IFERROR(IF(Kundeemnedata[Prognose for luk] <>\"\",IF(Kundeemnedata[Prognose for luk] = \"November\",Kundeemnedata[Vægtet prognose],0),\"\"),\"\")","v":""},{"$f":"IFERROR(IF(Kundeemnedata[Prognose for luk] <>\"\",IF(Kundeemnedata[Prognose for luk] = \"December\",Kundeemnedata[Vægtet prognose],0),\"\"),\"\")","v":""}]
[null,{"$f":"IFERROR(IF(AND(Kundeemnedata[Kundeemnets navn] <> \"\", ROW(Salgsprognose[Kundeemnets navn])<>SenestePostering),Kundeemnedata[Kundeemnets navn], \"\"),\"\")","v":""},{"$f":"IFERROR(IF(Kundeemnedata[Prognose for luk] <>\"\",IF(Kundeemnedata[Prognose for luk]= \"Januar\",Kundeemnedata[Vægtet prognose],0),\"\"),\"\")","v":""},{"$f":"IFERROR(IF(Kundeemnedata[Prognose for luk] <>\"\",IF(Kundeemnedata[Prognose for luk] = \"Februar\",Kundeemnedata[Vægtet prognose],0),\"\"),\"\")","v":""},{"$f":"IFERROR(IF(Kundeemnedata[Prognose for luk] <>\"\",IF(Kundeemnedata[Prognose for luk] = \"Marts\",Kundeemnedata[Vægtet prognose],0),\"\"),\"\")","v":""},{"$f":"IFERROR(IF(Kundeemnedata[Prognose for luk] <>\"\",IF(Kundeemnedata[Prognose for luk] = \"April\",Kundeemnedata[Vægtet prognose],0),\"\"),\"\")","v":""},{"$f":"IFERROR(IF(Kundeemnedata[Prognose for luk] <>\"\",IF(Kundeemnedata[Prognose for luk] = \"Maj\",Kundeemnedata[Vægtet prognose],0),\"\"),\"\")","v":""},{"$f":"IFERROR(IF(Kundeemnedata[Prognose for luk] <>\"\",IF(Kundeemnedata[Prognose for luk] = \"Juni\",Kundeemnedata[Vægtet prognose],0),\"\"),\"\")","v":""},{"$f":"IFERROR(IF(Kundeemnedata[Prognose for luk] <>\"\",IF(Kundeemnedata[Prognose for luk] = \"juli\",Kundeemnedata[Vægtet prognose],0),\"\"),\"\")","v":""},{"$f":"IFERROR(IF(Kundeemnedata[Prognose for luk] <>\"\",IF(Kundeemnedata[Prognose for luk] = \"August\",Kundeemnedata[Vægtet prognose],0),\"\"),\"\")","v":""},{"$f":"IFERROR(IF(Kundeemnedata[Prognose for luk] <>\"\",IF(Kundeemnedata[Prognose for luk] = \"September\",Kundeemnedata[Vægtet prognose],0),\"\"),\"\")","v":""},{"$f":"IFERROR(IF(Kundeemnedata[Prognose for luk] <>\"\",IF(Kundeemnedata[Prognose for luk] = \"Oktober\",Kundeemnedata[Vægtet prognose],0),\"\"),\"\")","v":""},{"$f":"IFERROR(IF(Kundeemnedata[Prognose for luk] <>\"\",IF(Kundeemnedata[Prognose for luk] = \"November\",Kundeemnedata[Vægtet prognose],0),\"\"),\"\")","v":""},{"$f":"IFERROR(IF(Kundeemnedata[Prognose for luk] <>\"\",IF(Kundeemnedata[Prognose for luk] = \"December\",Kundeemnedata[Vægtet prognose],0),\"\"),\"\")","v":""}]
[null,"Total",{"$f":"SUBTOTAL(109,Salgsprognose[Prognose for januar])","v":{"v":270000,"d":"kr. 270,000"}},{"$f":"SUBTOTAL(109,Salgsprognose[Prognose for februar])","v":{"v":20000,"d":"kr. 20,000"}},{"$f":"SUBTOTAL(109,Salgsprognose[Prognose for marts])","v":{"v":20000,"d":"kr. 20,000"}},{"$f":"SUBTOTAL(109,Salgsprognose[Prognose for april])","v":{"v":0,"d":"kr. 0"}},{"$f":"SUBTOTAL(109,Salgsprognose[Prognose for maj])","v":{"v":0,"d":"kr. 0"}},{"$f":"SUBTOTAL(109,Salgsprognose[Prognose for juni])","v":{"v":0,"d":"kr. 0"}},{"$f":"SUBTOTAL(109,Salgsprognose[Prognose for juli])","v":{"v":0,"d":"kr. 0"}},{"$f":"SUBTOTAL(109,Salgsprognose[Prognose for august])","v":{"v":0,"d":"kr. 0"}},{"$f":"SUBTOTAL(109,Salgsprognose[Prognose for september])","v":{"v":0,"d":"kr. 0"}},{"$f":"SUBTOTAL(109,Salgsprognose[Prognose for oktober])","v":{"v":0,"d":"kr. 0"}},{"$f":"SUBTOTAL(109,Salgsprognose[Prognose for november])","v":{"v":0,"d":"kr. 0"}},{"$f":"SUBTOTAL(109,Salgsprognose[Prognose for december])","v":{"v":0,"d":"kr. 0"}}]
[null,"Samlet akkumulering",{"$f":"C20","v":{"v":270000,"d":"kr. 270,000"}},{"$f":"C21+D20","v":{"v":290000,"d":"kr. 290,000"}},{"v":310000,"d":"kr. 310,000"},{"v":310000,"d":"kr. 310,000"},{"v":310000,"d":"kr. 310,000"},{"v":310000,"d":"kr. 310,000"},{"v":310000,"d":"kr. 310,000"},{"v":310000,"d":"kr. 310,000"},{"v":310000,"d":"kr. 310,000"},{"v":310000,"d":"kr. 310,000"},{"v":310000,"d":"kr. 310,000"},{"v":310000,"d":"kr. 310,000"}]

{"sheet":"Månedlig vægtet prognose","index":2,"n_rows":3,"n_cols":2,"rows_kept":3}
[null,{"$f":"Firmanavn","v":"Firmanavn"}]
[null,"Månedlig vægtet prognose"]
[null," "]